fUST/lending_fUST_20250903
["ID","MTS","AMOUNT","RATE_DAILY","PERIOD"]
[383317416,1756902680418,-500.0,0.00017808,2]
[383317418,1756902680428,-968.55,0.00017808,2]
[383317420,1756902680438,-804.96,0.00017808,2]
[383317422,1756902680447,-288.3766,0.00017808,2]
[383317424,1756902680457,-3576.34,0.00017808,2]
[383317426,1756902680467,-564.09,0.00017808,2]
[383317428,1756902680477,-1140.19,0.00017808,2]
[383317430,1756902680486,-535.9,0.00017808,2]
[383317432,1756902680496,-3480.49,0.00017808,2]
[383317434,1756902680506,-781.04,0.00017808,2]
[383317436,1756902680515,-631.86,0.00017808,2]
[383317438,1756902680525,-480.0,0.00017808,2]
[383317440,1756902680535,-1207.72,0.00017808,2]
[383317442,1756902680545,-480.0,0.00017808,2]
[383317444,1756902680554,-658.68,0.00017808,2]
[383317446,1756902680564,-625.86,0.00017808,2]
[383317448,1756902680574,-4000.0,0.00017808,2]
[383317450,1756902680583,-760.0,0.00017832,2]
[383317452,1756902680593,-166.0,0.00017841,2]
[383317454,1756902680602,-166.0,0.00017841,2]
[383317456,1756902680612,-166.0,0.00017841,2]
[383317458,1756902680621,-166.0,0.00017841,2]
[383317460,1756902680630,-166.0,0.00017841,2]
[383317462,1756902680640,-166.0,0.00017841,2]
[383317464,1756902680650,-172.0,0.00017841,2]
[383317466,1756902680659,-1768.0,0.00017841,2]
[383317468,1756902680669,-1768.0,0.00017841,2]
[383317470,1756902680678,-1768.0,0.00017841,2]
[383317472,1756902680688,-1768.0,0.00017841,2]
[383317474,1756902680697,-1768.0,0.00017841,2]
[383317476,1756902680707,-1768.0,0.00017841,2]
[383317478,1756902680717,-1768.0,0.00017841,2]
[383317480,1756902680726,-1768.0,0.00017841,2]
[383317483,1756902680738,-1768.0,0.00017841,2]
[383317485,1756902680747,-1768.0,0.00017841,2]
[383317487,1756902680757,-1768.0,0.00017841,2]
[383317489,1756902680766,-1768.0,0.00017841,2]
[383317491,1756902680776,-1768.0,0.00017841,2]
[383317493,1756902680785,-1768.0,0.00017841,2]
[383317494,1756902680794,-1768.0,0.00017841,2]
[383317496,1756902680804,-1768.0,0.00017841,2]
[383317498,1756902680815,-1768.0,0.00017841,2]
[383317500,1756902680824,-1768.0,0.00017841,2]
[383317502,1756902680834,-1768.0,0.00017841,2]
[383317504,1756902680844,-1768.0,0.00017841,2]
[383317506,1756902680853,-1768.0,0.00017841,2]
[383317508,1756902680863,-1768.0,0.00017841,2]
[383317510,1756902680873,-1768.0,0.00017841,2]
[383317512,1756902680883,-1768.0,0.00017841,2]
[383317514,1756902680892,-1768.0,0.00017841,2]
[383317516,1756902680902,-1768.0,0.00017841,2]
[383317518,1756902680911,-1768.0,0.00017841,2]
[383317520,1756902680921,-1768.0,0.00017841,2]
[383317522,1756902680930,-1768.0,0.00017841,2]
[383317524,1756902680941,-1768.0,0.00017841,2]
[383317527,1756902680951,-1768.0,0.00017841,2]
[383317528,1756902680961,-1768.0,0.00017841,2]
[383317530,1756902680970,-1768.0,0.00017841,2]
[383317532,1756902680979,-1768.0,0.00017841,2]
[383317534,1756902680988,-1768.0,0.00017841,2]
[383317536,1756902680998,-1768.0,0.00017841,2]
[383317538,1756902681007,-1768.0,0.00017841,2]
[383317540,1756902681016,-1768.0,0.00017841,2]
[383317542,1756902681026,-1768.0,0.00017841,2]
[383317544,1756902681035,-1768.0,0.00017841,2]
[383317546,1756902681045,-1768.0,0.00017841,2]
[383317548,1756902681055,-1768.0,0.00017841,2]
[383317550,1756902681064,-1768.0,0.00017841,2]
[383317552,1756902681073,-1768.0,0.00017841,2]
[383317554,1756902681083,-1768.0,0.00017841,2]
[383317556,1756902681093,-1768.0,0.00017841,2]
[383317558,1756902681102,-1768.0,0.00017841,2]
[383317560,1756902681112,-1768.0,0.00017841,2]
[383317562,1756902681121,-1768.0,0.00017841,2]
[383317565,1756902681131,-1768.0,0.00017841,2]
[383317567,1756902681140,-1768.0,0.00017841,2]
[383317569,1756902681150,-1768.0,0.00017841,2]
[383317570,1756902681159,-1192.47056205,0.00017841,2]
[383317572,1756902681169,-156.0,0.00017841,2]
[383317574,1756902681178,-156.0,0.00017841,2]
[383317576,1756902681187,-156.0,0.00017841,2]
[383317578,1756902681197,-156.0,0.00017841,2]
[383317580,1756902681207,-153.4970593,0.00017841,2]
[383317582,1756902681217,-327.72789915,0.00017841,2]
[383317584,1756902681226,-160.0,0.00017842,9]
[383317586,1756902681236,-500.0,0.00017859,2]
[383317588,1756902681245,-3000.0,0.00017876,2]
[383317590,1756902681256,-2000.0,0.00017885,2]
[383317592,1756902681265,-15904.31810478,0.00017907,2]
[383317594,1756902681276,-1059.77149164,0.00017907,5]
[383317596,1756902681286,-3000.0,0.00017919,2]
[383317599,1756902681298,-3000.0,0.00017919,2]
[383317601,1756902681308,-3000.0,0.00017919,2]
[383317603,1756902681318,-600.0,0.00017956,2]
[383317605,1756902681327,-3000.0,0.00017965,2]
[383317607,1756902681337,-79042.08,0.0001797,2]
[383317609,1756902681347,-3000.0,0.00017972,2]
[383317610,1756902681357,-3000.0,0.00017972,2]
[383317612,1756902681366,-2382.58986514,0.00017972,2]
[383317614,1756902681375,-3000.0,0.00017972,2]
[383317616,1756902681385,-3000.0,0.00017982,2]
[383317618,1756902681395,-823.0,0.00017993,2]
[383317621,1756902681405,-160.0,0.00018,10]
[383317622,1756902681414,-116256.5430663,0.00018,2]
[383320970,1756902748712,653.84276744,0.00013287,2]
[383320974,1756902843405,836.68,0.00012329,2]
[383320975,1756902864766,348.62,0.00012329,2]
[383320976,1756902885835,871.57,0.00012329,2]
[383320977,1756902939298,-326.92138372,0.00013416,2]
[383320992,1756902963063,-203.62749597,0.00013416,2]
[383320993,1756902966908,-123.29388775,0.00013416,2]
[383320994,1756902986964,-214.33033314,0.00013416,2]
[383320995,1756902991079,-112.59105058,0.00013416,2]
[383320996,1756903010778,-187.40894942,0.00013416,2]
[383320997,1756903014462,-139.5124343,0.00013416,2]
[383321008,1756903238176,140.27164305,0.00013282,2]
[383321009,1756903238202,186.64974067,0.00013282,2]
[383321010,1756903262145,-162.80359796,0.00013416,2]
[383321011,1756903264750,-164.11778576,0.00013416,2]
[383321012,1756903285346,-248.88114585,0.00013416,2]
[383321013,1756903287271,-78.04023787,0.00013416,2]
[383321014,1756903311047,-164.05823101,0.00013416,2]
[383321015,1756903313146,-162.86315271,0.00013416,2]
[383321022,1756903438361,493.87,0.00012329,2]
[383321023,1756903448972,411.55,0.00012329,2]
[383321031,1756903459402,342.96,0.00012329,2]
[383321032,1756903469808,285.8,0.00012329,2]
[383321034,1756903480467,238.17,0.00012329,2]
[383321035,1756903491022,198.47,0.00012329,2]
[383321036,1756903501440,165.4,0.00012329,2]
[383321039,1756903517600,-278.77341071,0.00013416,2]
[383321041,1756903519803,-48.14797301,0.00013416,2]
[383321045,1756903524754,827.0,0.00012329,2]
[383321074,1756903745598,326.92138372,0.00013282,2]
[383321076,1756903756295,-211.21256575,0.00013416,2]
[383321086,1756903816283,457.18539234,0.00014,4]
[383321230,1756903838663,-115.70881797,0.00013416,2]
[383321232,1756903838673,-326.92138372,0.00013552,2]
[383321234,1756903838683,-74.13229152,0.00013597,2]
[383321239,1756903838736,-1762.00091925,0.00013597,2]
[383321241,1756903838746,-194.05633118,0.00013597,2]
[383321243,1756903838755,-1000.0,0.00013598,2]
[383321245,1756903838764,-500.0,0.00013673,2]
[383321246,1756903838774,-500.0,0.00013673,2]
[383321248,1756903838783,-300.0,0.00013696,2]
[383321250,1756903838792,-300.0,0.00013696,2]
[383321252,1756903838801,-426.0,0.00013696,2]
[383321254,1756903838810,-278.54522527,0.00013697,2]
[383321256,1756903838820,-500.0,0.00013697,2]
[383321258,1756903838829,-500.0,0.00013697,2]
[383321260,1756903838840,-500.0,0.00013697,2]
[383321262,1756903838852,-500.0,0.00013697,2]
[383321264,1756903838862,-500.0,0.00013697,2]
[383321266,1756903838871,-317.85130116,0.00013697,2]
[383321268,1756903838883,-182.14869884,0.00013697,2]
[383321270,1756903838893,-500.0,0.00013697,2]
[383321272,1756903838903,-500.0,0.00013697,2]
[383321275,1756903838912,-500.0,0.00013697,2]
[383321278,1756903838923,-206.12187269,0.00013697,2]
[383321281,1756903838934,-293.87812731,0.00013697,2]
[383321284,1756903838943,-373.06385227,0.00013697,2]
[383321287,1756903838954,-126.93614773,0.00013697,2]
[383321290,1756903838964,-500.0,0.00013697,2]
[383321293,1756903838973,-483.98204621,0.00013697,2]
[383321296,1756903838985,-16.01795379,0.00013697,2]
[383321299,1756903838994,-500.0,0.00013697,2]
[383321302,1756903839003,-500.0,0.00013697,2]
[383321305,1756903839013,-500.0,0.00013697,2]
[383321308,1756903839022,-500.0,0.00013697,2]
[383321311,1756903839032,-304.93801182,0.00013697,2]
[383321313,1756903839045,-195.06198818,0.00013697,2]
[383321315,1756903839054,-399.92206076,0.00013697,2]
[383321317,1756903839066,-121.81229302,0.00013697,2]
[383321319,1756903839075,-440.03549477,0.00013697,2]
[383321321,1756903839086,-59.96450523,0.00013697,2]
[383321323,1756903839095,-500.0,0.00013697,2]
[383321325,1756903839105,-500.0,0.00013697,2]
[383321327,1756903839115,-132.11472434,0.00013697,2]
[383321329,1756903839126,-251.58330087,0.00013697,2]
[383321331,1756903839136,-500.0,0.00013697,2]
[383321333,1756903839146,-500.0,0.00013697,2]
[383321335,1756903839155,-500.0,0.00013697,2]
[383321337,1756903839165,-168.41669913,0.00013697,2]
[383321339,1756903839181,-331.58330087,0.00013697,2]
[383321341,1756903839192,-123.68669913,0.00013697,2]
[383321822,1756903844324,-382.76199589,0.0001356,2]
[383321841,1756903844495,-1868.98221426,0.0001356,2]
[383322683,1756903853092,-152.0,0.00013424,2]
[383323048,1756903856609,-205.83156262,0.00013424,2]
[383329930,1756903950393,261.53710698,0.00013287,2]
[383329955,1756904044433,1870.9056557,0.0001329,2]
[383329963,1756904070268,2061.48878152,0.00013326,2]
[383329967,1756904093509,2061.48878152,0.00013326,2]
[383329973,1756904116879,267.79854989,0.00013326,2]
[383329974,1756904116905,158.5416584,0.00013326,2]
[383329980,1756904146717,488.71,0.00027397,120]
[383329981,1756904157470,159.0,0.000133,2]
[383329982,1756904169109,488.7,0.00027397,120]
[383329985,1756904171702,160.07900117,0.000133,2]
[383329988,1756904218544,163.09313352,0.00025,30]
[383329998,1756904439665,380.86755232,0.00013327,2]
[383329999,1756904455088,169.33814378,0.00013363,2]
[383330000,1756904463396,169.33814378,0.00013363,2]
[383330001,1756904480406,169.33814378,0.00013363,2]
[383330003,1756904489075,169.33814378,0.00013363,2]
[383330004,1756904505283,169.33814378,0.00013363,2]
[383330005,1756904513827,169.33814378,0.00013363,2]
[383330006,1756904531145,169.33814378,0.00013363,2]
[383330007,1756904539615,169.33814378,0.00013363,2]
[383330008,1756904556005,169.33814378,0.00013363,2]
[383330009,1756904564927,169.33814378,0.00013363,2]
[383330010,1756904580643,169.33814378,0.00013363,2]
[383330012,1756904588950,169.33814378,0.00013363,2]
[383330013,1756904605480,169.33814378,0.00013363,2]
[383330014,1756904615425,169.33814378,0.00013363,2]
[383330017,1756904631937,169.33814378,0.00013363,2]
[383330021,1756904640678,169.33814378,0.00013363,2]
[383330024,1756904657327,169.33814378,0.00013363,2]
[383330025,1756904665677,169.33814378,0.00013363,2]
[383330026,1756904682131,169.33814378,0.00013363,2]
[383330027,1756904690617,169.33814378,0.00013363,2]
[383330028,1756904707541,169.33814378,0.00013363,2]
[383330029,1756904716870,169.33814378,0.00013363,2]
[383330030,1756904733099,169.33814378,0.00013363,2]
[383330031,1756904742133,169.33814378,0.00013363,2]
[383330032,1756904758800,169.33814378,0.00013363,2]
[383330033,1756904782411,169.33814378,0.00013363,2]
[383330038,1756904807673,169.33814378,0.00013363,2]
[383330040,1756904832355,169.33814378,0.00013363,2]
[383330043,1756904857581,169.33814378,0.00013363,2]
[383330045,1756904882023,169.33814378,0.00013363,2]
[383330046,1756904906186,169.33814378,0.00013363,2]
[383330047,1756904931253,169.33814378,0.00013363,2]
[383330048,1756904955551,169.33814378,0.00013363,2]
[383330049,1756904980429,169.33814378,0.00013363,2]
[383330064,1756905006313,380.86755232,0.00013461,2]
[383330072,1756905030893,380.86755232,0.00013461,2]
[383330119,1756905032072,-380.86755232,0.00013597,2]
[383330121,1756905032082,-300.0,0.00013662,2]
[383330123,1756905032091,-300.0,0.00013662,2]
[383330125,1756905032101,-1200.0,0.00013662,2]
[383330127,1756905032111,-9730.1153182,0.00013663,2]
[383330129,1756905032120,-6858.84867699,0.00013663,2]
[383330131,1756905032131,-1114.08641614,0.00013663,2]
[383330138,1756905032184,-10921.34506127,0.00013663,2]
[383330140,1756905032194,-500.0,0.0001369,2]
[383330142,1756905032203,-500.0,0.0001369,2]
[383330144,1756905032213,-500.0,0.0001369,2]
[383330147,1756905032227,-500.0,0.0001369,2]
[383330150,1756905032238,-500.0,0.0001369,2]
[383330152,1756905032247,-500.0,0.0001369,2]
[383330154,1756905032256,-500.0,0.0001369,2]
[383330156,1756905032267,-502.53916834,0.0001369,2]
[383330158,1756905032278,-376.31330087,0.00013697,2]
[383330160,1756905032288,-500.0,0.00013697,2]
[383330162,1756905032298,-257.09934961,0.00013697,2]
[383330164,1756905032313,-500.0,0.00013697,2]
[383330166,1756905032322,-154.40898071,0.00013697,2]
[383330168,1756905032332,-500.0,0.00013697,2]
[383330170,1756905032342,-500.0,0.00013697,2]
[383330172,1756905032352,-313.94384341,0.00013697,2]
[383330174,1756905032362,-500.0,0.00013697,2]
[383330176,1756905032371,-500.0,0.00013697,2]
[383330178,1756905032381,-301.95201762,0.00013697,2]
[383330180,1756905032391,-500.0,0.00013697,2]
[383330183,1756905032402,-500.0,0.00013697,2]
[383330185,1756905032413,-500.0,0.00013697,2]
[383330186,1756905032425,-500.0,0.00013697,2]
[383330189,1756905032434,-500.0,0.00013697,2]
[383330191,1756905032444,-500.0,0.00013697,2]
[383330193,1756905032453,-500.0,0.00013697,2]
[383330195,1756905032463,-500.0,0.00013697,2]
[383330197,1756905032473,-500.0,0.00013697,2]
[383330199,1756905032482,-500.0,0.00013697,2]
[383330201,1756905032492,-500.0,0.00013697,2]
[383330203,1756905032502,-500.0,0.00013697,2]
[383330205,1756905032512,-500.0,0.00013697,2]
[383330207,1756905032522,-500.0,0.00013697,2]
[383330209,1756905032531,-500.0,0.00013697,2]
[383330211,1756905032540,-500.0,0.00013697,2]
[383330213,1756905032550,-385.72454871,0.00013697,2]
[383330214,1756905032559,-500.0,0.00013697,2]
[383330217,1756905032569,-500.0,0.00013697,2]
[383330219,1756905032579,-500.0,0.00013697,2]
[383330221,1756905032588,-500.0,0.00013697,2]
[383330222,1756905032597,-500.0,0.00013697,2]
[383330225,1756905032608,-500.0,0.00013697,2]
[383330227,1756905032618,-500.0,0.00013697,2]
[383330229,1756905032628,-414.25173429,0.00013697,2]
[383330231,1756905032637,-222.16908736,0.00013697,2]
[383330233,1756905032646,-480.0,0.00013697,2]
[383330235,1756905032656,-500.0,0.00013697,2]
[383330237,1756905032665,-480.0,0.00013697,2]
[383330239,1756905032675,-250.29799754,0.00013697,2]
[383330240,1756905032684,-237.39232228,0.00013697,2]
[383330242,1756905032694,-317.65539057,0.00013697,2]
[383330245,1756905032705,-500.0,0.00013697,2]
[383330246,1756905032714,-500.0,0.00013697,2]
[383330248,1756905032723,-500.0,0.00013697,2]
[383330250,1756905032733,-500.0,0.00013697,2]
[383330267,1756905032885,-500.0,0.00013697,2]
[383330269,1756905032896,-500.0,0.00013697,2]
[383330272,1756905032906,-343.94919062,0.00013697,2]
[383330274,1756905032915,-500.0,0.00013697,2]
[383330276,1756905032924,-500.0,0.00013697,2]
[383330278,1756905032934,-500.0,0.00013697,2]
[383330280,1756905032944,-500.0,0.00013697,2]
[383330282,1756905032953,-500.0,0.00013697,2]
[383330284,1756905032963,-500.0,0.00013697,2]
[383330286,1756905032972,-500.0,0.00013697,2]
[383330288,1756905032982,-500.0,0.00013697,2]
[383330290,1756905032993,-500.0,0.00013697,2]
[383330292,1756905033003,-500.0,0.00013697,2]
[383330294,1756905033012,-500.0,0.00013697,2]
[383330296,1756905033022,-600.0,0.00013697,2]
[383330298,1756905033032,-276.88056488,0.00013697,2]
[383330300,1756905033042,-279.39528898,0.00013697,2]
[383330302,1756905033052,-410.85647041,0.00013697,2]
[383330304,1756905033062,-500.0,0.00013697,2]
[383330306,1756905033072,-591.68,0.00013697,2]
[383330308,1756905033081,-500.0,0.00013697,2]
[383330310,1756905033092,-500.0,0.00013697,2]
[383330312,1756905033102,-1413.74807617,0.00013697,2]
[383330314,1756905033111,-500.0,0.00013697,2]
[383330316,1756905033120,-480.0,0.00013698,2]
[383330318,1756905033130,-481.43618881,0.00013698,2]
[383330320,1756905033139,-480.0,0.00013698,2]
[383330322,1756905033149,-480.43491683,0.00013698,2]
[383330323,1756905033159,-480.0,0.00013698,2]
[383330326,1756905033169,-480.0,0.00013698,2]
[383330327,1756905033178,-480.0,0.00013698,2]
[383330329,1756905033187,-523.28,0.00013698,2]
[383330331,1756905033197,-480.0,0.00013698,2]
[383330333,1756905033206,-480.0,0.00013698,2]
[383330335,1756905033216,-483.5667918,0.00013698,2]
[383330338,1756905033226,-480.0,0.00013698,2]
[383330340,1756905033235,-480.0,0.00013698,2]
[383330342,1756905033247,-480.0,0.00013698,2]
[383330343,1756905033256,-480.0,0.00013698,2]
[383330345,1756905033266,-480.0,0.00013698,2]
[383330348,1756905033281,-480.0,0.00013698,2]
[383330350,1756905033290,-480.0,0.00013698,2]
[383330351,1756905033300,-206.06,0.00013698,2]
[383330353,1756905033311,-480.0,0.00013698,2]
[383330355,1756905033320,-480.0,0.00013698,2]
[383330357,1756905033330,-480.0,0.00013698,2]
[383330360,1756905033340,-480.0,0.00013698,2]
[383330362,1756905033350,-480.0,0.00013698,2]
[383330364,1756905033359,-480.0,0.00013698,2]
[383330366,1756905033368,-480.0,0.00013698,2]
[383330368,1756905033378,-433.22443353,0.00013698,2]
[383330370,1756905033387,-480.0,0.00013698,2]
[383330372,1756905033396,-480.0,0.00013698,2]
[383330373,1756905033406,-480.0,0.00013698,2]
[383330376,1756905033415,-561.63,0.00013698,2]
[383330378,1756905033424,-480.0,0.00013698,2]
[383330380,1756905033434,-480.0,0.00013698,2]
[383330382,1756905033444,-354.3,0.00013698,2]
[383330384,1756905033453,-480.0,0.00013698,2]
[383330385,1756905033462,-480.0,0.00013698,2]
[383330387,1756905033471,-480.0,0.00013698,2]
[383330389,1756905033481,-480.0,0.00013698,2]
[383330391,1756905033490,-480.0,0.00013698,2]
[383330393,1756905033500,-480.0,0.00013698,2]
[383330395,1756905033510,-480.0,0.00013698,2]
[383330397,1756905033520,-480.0,0.00013698,2]
[383330399,1756905033529,-480.0,0.00013698,2]
[383330401,1756905033539,-480.0,0.00013698,2]
[383330403,1756905033549,-480.0,0.00013698,2]
[383330406,1756905033559,-480.0,0.00013698,2]
[383330407,1756905033568,-480.0,0.00013698,2]
[383330409,1756905033578,-480.0,0.00013698,2]
[383330411,1756905033587,-480.0,0.00013698,2]
[383330413,1756905033598,-480.0,0.00013698,2]
[383330414,1756905033608,-480.0,0.00013698,2]
[383330416,1756905033618,-558.78,0.00013698,2]
[383330418,1756905033628,-480.0,0.00013698,2]
[383330420,1756905033637,-480.0,0.00013698,2]
[383330422,1756905033647,-480.0,0.00013698,2]
[383330424,1756905033657,-424.53,0.00013698,2]
[383330425,1756905033666,-413.01875137,0.00013698,2]
[383330427,1756905033675,-554.84,0.00013698,2]
[383330429,1756905033685,-480.0,0.00013698,2]
[383330431,1756905033694,-480.0,0.00013698,2]
[383330433,1756905033703,-480.0,0.00013698,2]
[383330435,1756905033712,-480.0,0.00013698,2]
[383330436,1756905033722,-480.0,0.00013698,2]
[383330438,1756905033732,-480.0,0.00013698,2]
[383330440,1756905033741,-480.0,0.00013698,2]
[383330442,1756905033751,-480.0,0.00013698,2]
[383330444,1756905033760,-480.0,0.00013698,2]
[383330445,1756905033770,-309.32,0.00013698,2]
[383330447,1756905033780,-480.0,0.00013698,2]
[383330449,1756905033790,-480.0,0.00013698,2]
[383330451,1756905033799,-480.0,0.00013698,2]
[383330453,1756905033808,-480.0,0.00013698,2]
[383330455,1756905033817,-480.0,0.00013698,2]
[383330457,1756905033827,-480.0,0.00013698,2]
[383330458,1756905033836,-480.0,0.00013698,2]
[383330460,1756905033846,-575.23,0.00013698,2]
[383330462,1756905033855,-480.0,0.00013698,2]
[383330464,1756905033865,-480.0,0.00013698,2]
[383330465,1756905033874,-553.14,0.00013698,2]
[383330467,1756905033884,-480.0,0.00013698,2]
[383330469,1756905033893,-480.0,0.00013698,2]
[383330471,1756905033903,-480.0,0.00013698,2]
[383330473,1756905033912,-480.0,0.00013698,2]
[383330475,1756905033922,-480.0,0.00013698,2]
[383330477,1756905033932,-480.0,0.00013698,2]
[383330478,1756905033942,-480.0,0.00013698,2]
[383330480,1756905033951,-480.0,0.00013698,2]
[383330482,1756905033961,-480.0,0.00013698,2]
[383330484,1756905033971,-490.4360983,0.00013698,2]
[383330486,1756905033981,-480.0,0.00013698,2]
[383330488,1756905033991,-480.0,0.00013698,2]
[383330489,1756905034000,-480.0,0.00013698,2]
[383330491,1756905034009,-482.83658517,0.00013698,2]
[383330493,1756905034019,-480.0,0.00013698,2]
[383330495,1756905034028,-480.0,0.00013698,2]
[383330497,1756905034038,-480.0,0.00013698,2]
[383330498,1756905034047,-526.89653165,0.00013698,2]
[383330500,1756905034057,-480.0,0.00013698,2]
[383330502,1756905034067,-480.0,0.00013698,2]
[383330504,1756905034076,-480.0,0.00013698,2]
[383330506,1756905034085,-480.0,0.00013698,2]
[383330508,1756905034096,-480.0,0.00013698,2]
[383330510,1756905034106,-482.63987726,0.00013698,2]
[383330512,1756905034115,-482.22866156,0.00013698,2]
[383330514,1756905034125,-480.0,0.00013698,2]
[383330515,1756905034135,-481.28103318,0.00013698,2]
[383330516,1756905034144,-480.0,0.00013698,2]
[383330517,1756905034154,-480.0,0.00013698,2]
[383330519,1756905034164,-480.0,0.00013698,2]
[383330521,1756905034174,-480.0,0.00013698,2]
[383330523,1756905034184,-532.86727214,0.00013698,2]
[383330525,1756905034194,-480.0,0.00013698,2]
[383330526,1756905034203,-480.0,0.00013698,2]
[383330528,1756905034213,-480.0,0.00013698,2]
[383330530,1756905034222,-480.0,0.00013698,2]
[383330532,1756905034232,-480.0,0.00013698,2]
[383330534,1756905034242,-480.0,0.00013698,2]
[383330536,1756905034251,-480.0,0.00013698,2]
[383330538,1756905034261,-480.0,0.00013698,2]
[383330540,1756905034274,-480.0,0.00013698,2]
[383330542,1756905034284,-480.0,0.00013698,2]
[383330543,1756905034293,-480.0,0.00013698,2]
[383330545,1756905034303,-480.0,0.00013698,2]
[383330546,1756905034312,-481.69628703,0.00013698,2]
[383330548,1756905034322,-481.36204137,0.00013698,2]
[383330550,1756905034331,-480.0,0.00013698,2]
[383330552,1756905034341,-480.0,0.00013698,2]
[383330553,1756905034350,-481.0005297,0.00013698,2]
[383330554,1756905034360,-480.0,0.00013698,2]
[383330555,1756905034370,-480.0,0.00013698,2]
[383330556,1756905034379,-450.43,0.00013698,2]
[383330557,1756905034388,-569.94630896,0.00013698,2]
[383330558,1756905034398,-209.44,0.00013698,2]
[383330560,1756905034407,-480.0,0.00013698,2]
[383330562,1756905034416,-480.0,0.00013698,2]
[383330564,1756905034426,-480.0,0.00013698,2]
[383330565,1756905034436,-480.0,0.00013698,2]
[383330567,1756905034445,-480.0,0.00013698,2]
[383330569,1756905034455,-480.0,0.00013698,2]
[383330571,1756905034464,-340.53,0.00013698,2]
[383330573,1756905034474,-480.0,0.00013698,2]
[383330575,1756905034485,-480.0,0.00013698,2]
[383330577,1756905034495,-480.0,0.00013698,2]
[383330579,1756905034505,-480.0,0.00013698,2]
[383330580,1756905034516,-480.0,0.00013698,2]
[383330582,1756905034525,-480.0,0.00013698,2]
[383330584,1756905034534,-480.0,0.00013698,2]
[383330586,1756905034543,-480.0,0.00013698,2]
[383330588,1756905034553,-480.0,0.00013698,2]
[383330590,1756905034563,-480.0,0.00013698,2]
[383330591,1756905034573,-480.0,0.00013698,2]
[383330593,1756905034583,-483.04129432,0.00013698,2]
[383330595,1756905034592,-480.0,0.00013698,2]
[383330597,1756905034601,-480.0,0.00013698,2]
[383330599,1756905034610,-480.0,0.00013698,2]
[383330601,1756905034619,-480.0,0.00013698,2]
[383330603,1756905034629,-480.0,0.00013698,2]
[383330605,1756905034638,-480.0,0.00013698,2]
[383330607,1756905034647,-480.0,0.00013698,2]
[383330608,1756905034656,-480.0,0.00013698,2]
[383330610,1756905034666,-480.0,0.00013698,2]
[383330612,1756905034676,-480.0,0.00013698,2]
[383330614,1756905034685,-480.0,0.00013698,2]
[383330616,1756905034694,-480.0,0.00013698,2]
[383330618,1756905034704,-480.0,0.00013698,2]
[383330620,1756905034713,-480.0,0.00013698,2]
[383330622,1756905034723,-480.0,0.00013698,2]
[383330624,1756905034732,-480.0,0.00013698,2]
[383330625,1756905034741,-480.0,0.00013698,2]
[383330627,1756905034751,-480.0,0.00013698,2]
[383330629,1756905034761,-480.0,0.00013698,2]
[383330631,1756905034770,-480.0,0.00013698,2]
[383330633,1756905034780,-480.0,0.00013698,2]
[383330635,1756905034790,-392.49746504,0.00013698,2]
[383330637,1756905034800,-480.0,0.00013698,2]
[383330639,1756905034809,-480.0,0.00013698,2]